[Event "NJSK 2024 B"]
[Site "Groningen, Netherlands"]
[Date "2024.04.30"]
[Round "4.5"]
[White "Zhu, Chenwu"]
[Black "Roolvink, William"]
[Result "1/2-1/2"]
[TimeControl "90min/40moves + 30min + 30sec/move"]
[WhiteElo "2020"]
[BlackElo "1966"]

1. e4 {[%clk 01:30:57]} {[%emt 00:00:01]} c6 {[%clk 01:30:34]} {[%emt
00:00:27]} 2. d4 {[%clk 01:31:22]} {[%emt 00:00:05]} d5 {[%clk 01:31:02]}
{[%emt 00:00:03]} 3. Nc3 {[%clk 01:31:48]} {[%emt 00:00:04]} dxe4 {[%clk
01:31:30]} {[%emt 00:00:03]} 4. Nxe4 {[%clk 01:32:13]} {[%emt 00:00:05]} Nf6
{[%clk 01:31:57]} {[%emt 00:00:02]} 5. Nxf6+ {[%clk 01:32:36]} {[%emt
00:00:07]} exf6 {[%clk 01:32:23]} {[%emt 00:00:04]} 6. c3 {[%clk 01:33:02]}
{[%emt 00:00:05]} Bd6 {[%clk 01:32:48]} {[%emt 00:00:05]} 7. Bd3 {[%clk
01:33:26]} {[%emt 00:00:05]} O-O {[%clk 01:33:15]} {[%emt 00:00:03]} 8. Qc2
{[%clk 01:33:41]} {[%emt 00:00:15]} Re8+ {[%clk 01:33:41]} {[%emt 00:00:04]} 9.
Ne2 {[%clk 01:34:07]} {[%emt 00:00:03]} g6 {[%clk 01:34:06]} {[%emt 00:00:06]}
10. O-O {[%clk 01:31:54]} {[%emt 00:02:43]} f5 {[%clk 01:34:03]} {[%emt
00:00:33]} 11. Re1 {[%clk 01:23:24]} {[%emt 00:09:00]} Nd7 {[%clk 01:32:47]}
{[%emt 00:01:46]} 12. g3 {[%clk 01:20:10]} {[%emt 00:03:44]} Bf8 {[%clk
01:21:25]} {[%emt 00:11:52]} 13. b3 {[%clk 01:10:38]} {[%emt 00:10:03]} Bg7
{[%clk 01:13:52]} {[%emt 00:08:03]} 14. Bb2 {[%clk 01:08:25]} {[%emt 00:02:43]}
Nf8 {[%clk 01:12:01]} {[%emt 00:02:20]} 15. Rad1 {[%clk 01:01:15]} {[%emt
00:07:40]} Ne6 {[%clk 01:01:09]} {[%emt 00:11:23]} 16. Bc1 {[%clk 00:51:47]}
{[%emt 00:09:58]} Ng5 {[%clk 00:41:21]} {[%emt 00:20:18]} 17. Bxg5 {[%clk
00:51:51]} {[%emt 00:00:27]} Qxg5 {[%clk 00:41:46]} {[%emt 00:00:03]} 18. Nf4
{[%clk 00:51:32]} {[%emt 00:00:50]} Bd7 {[%clk 00:41:23]} {[%emt 00:00:53]} 19.
Bf1 {[%clk 00:48:52]} {[%emt 00:03:10]} Qf6 {[%clk 00:34:06]} {[%emt 00:07:48]}
20. Bg2 {[%clk 00:47:04]} {[%emt 00:02:18]} Bh6 {[%clk 00:33:32]} {[%emt
00:01:05]} 21. Nd3 {[%clk 00:39:56]} {[%emt 00:07:39]} f4 {[%clk 00:26:58]}
{[%emt 00:07:04]} 22. Ne5 {[%clk 00:38:12]} {[%emt 00:02:13]} Bf5 {[%clk
00:25:29]} {[%emt 00:01:59]} 23. Be4 {[%clk 00:33:44]} {[%emt 00:04:58]} Bxe4
{[%clk 00:21:01]} {[%emt 00:04:59]} 24. Rxe4 {[%clk 00:31:13]} {[%emt
00:03:01]} fxg3 {[%clk 00:20:12]} {[%emt 00:01:19]} 25. fxg3 {[%emt 00:04:32]}
Qd6 {[%clk 00:18:16]} 26. Rde1 {[%clk 00:27:07]} {[%emt 00:02:59]} Bg7 {[%clk
00:16:42]} {[%emt 00:02:03]} 27. Nc4 {[%clk 00:25:47]} {[%emt 00:01:50]} Qd7
{[%clk 00:16:38]} {[%emt 00:00:34]} 28. Qe2 {[%clk 00:25:01]} {[%emt 00:01:16]}
Rxe4 {[%clk 00:15:06]} {[%emt 00:02:02]} 29. Qxe4 {[%clk 00:24:53]} {[%emt
00:00:38]} Bf8 {[%clk 00:13:23]} {[%emt 00:02:15]} 30. Ne5 {[%clk 00:24:05]}
{[%emt 00:01:17]} Qd6 {[%clk 00:07:12]} {[%emt 00:06:40]} 31. Nd3 {[%clk
00:23:06]} {[%emt 00:01:30]} Qd7 {[%clk 00:03:57]} {[%emt 00:03:45]} 32. Qe3
{[%clk 00:21:48]} {[%emt 00:01:48]} Rd8 {[%clk 00:02:57]} {[%emt 00:01:30]} 33.
Nf2 {[%clk 00:20:13]} {[%emt 00:02:05]} Bg7 {[%clk 00:01:05]} {[%emt 00:02:23]}
34. Qe7 {[%clk 00:19:32]} {[%emt 00:01:10]} Bf8 {[%clk 00:00:37]} {[%emt
00:00:58]} 35. Qh4 {[%clk 00:18:31]} {[%emt 00:01:30]} Re8 {[%clk 00:00:46]}
{[%emt 00:00:21]} 36. Rxe8 {[%clk 00:13:31]} {[%emt 00:05:31]} Qxe8 {[%clk
00:01:15]} {[%emt 00:00:02]} 37. Qe4 {[%clk 00:13:34]} {[%emt 00:00:26]} Qxe4
{[%clk 00:00:36]} {[%emt 00:01:09]} 38. Nxe4 {[%clk 00:14:03]} {[%emt
00:00:01]} Be7 {[%clk 00:00:38]} {[%emt 00:00:29]} 39. Kf2 {[%clk 00:14:01]}
{[%emt 00:00:31]} f5 {[%clk 00:00:46]} {[%emt 00:00:22]} 40. Nd2 {[%clk
00:14:20]} {[%emt 00:00:11]} Bd6 {[%clk 00:00:36]} {[%emt 00:00:40]} 41. a4
{[%clk 00:12:44]} {[%emt 00:02:05]} Kf7 {[%clk 00:00:34]} {[%emt 00:00:31]} 42.
b4 {[%clk 00:08:17]} {[%emt 00:04:58]} Ke6 {[%clk 00:28:52]} {[%emt 00:02:12]}
43. b5 {[%clk 00:37:09]} {[%emt 00:01:39]} c5 {[%clk 00:22:49]} {[%emt
00:06:33]} 44. Ke3 {[%clk 00:36:02]} {[%emt 00:01:37]} cxd4+ {[%clk 00:20:48]}
{[%emt 00:02:31]} 45. Kxd4 {[%clk 00:36:10]} {[%emt 00:00:21]} Be5+ {[%clk
00:18:40]} {[%emt 00:02:38]} 46. Kd3 {[%clk 00:35:34]} {[%emt 00:01:06]} g5
{[%clk 00:11:32]} {[%emt 00:07:38]} 47. Nc4 {[%clk 00:25:32]} {[%emt 00:10:32]}
Bc7 {[%clk 00:09:53]} {[%emt 00:02:09]} 48. a5 {[%clk 00:24:47]} {[%emt
00:01:16]} b6 {[%clk 00:08:04]} {[%emt 00:02:19]} 49. axb6 {[%clk 00:22:33]}
{[%emt 00:02:43]} axb6 {[%clk 00:05:32]} {[%emt 00:03:02]} 50. Nd2 {[%clk
00:18:35]} {[%emt 00:04:28]} g4 {[%clk 00:04:13]} {[%emt 00:01:49]} 51. c4
{[%clk 00:16:53]} {[%emt 00:02:12]} Bd6 {[%clk 00:01:57]} {[%emt 00:02:46]} 52.
Nb3 {[%clk 00:14:56]} {[%emt 00:02:27]} f4 {[%clk 00:01:42]} {[%emt 00:00:46]}
53. gxf4 {[%emt 00:03:41]} Bxf4 {[%clk 00:02:09]} {[%emt 00:00:01]} 54. c5
{[%clk 00:11:01]} {[%emt 00:01:16]} bxc5 {[%clk 00:01:26]} {[%emt 00:01:14]} 55.
Nxc5+ {[%clk 00:09:01]} {[%emt 00:02:30]} Kf5 {[%clk 00:01:50]} {[%emt
00:00:06]} 56. h3 {[%clk 00:08:32]} {[%emt 00:00:58]} gxh3 {[%clk 00:00:47]}
{[%emt 00:01:33]} 57. Ne4 {[%clk 00:08:58]} {[%emt 00:00:04]} h2 {[%clk
00:00:50]} {[%emt 00:00:27]} 58. Nf2 {[%clk 00:09:19]} {[%emt 00:00:09]} h5
{[%clk 00:00:40]} {[%emt 00:00:40]} 59. Ke2 {[%clk 00:09:20]} {[%emt 00:00:29]}
h4 {[%clk 00:01:01]} {[%emt 00:00:09]} 60. Kf3 {[%clk 00:08:52]} {[%emt
00:00:57]} h3 {[%clk 00:01:16]} {[%emt 00:00:16]} 61. b6 {[%clk 00:08:51]}
{[%emt 00:00:31]} Bb8 {[%clk 00:00:38]} {[%emt 00:01:08]} 62. Ke3 {[%clk
00:08:31]} {[%emt 00:00:50]} Bg3 {[%clk 00:00:37]} {[%emt 00:00:31]} 63. Nh1
{[%clk 00:08:32]} {[%emt 00:00:28]} Kg4 {[%clk 00:00:32]} {[%emt 00:00:37]} 64.
Nxg3 {[%clk 00:08:15]} {[%emt 00:00:47]} Kxg3 {[%clk 00:01:00]} {[%emt
00:00:02]} 65. b7 {[%clk 00:08:37]} {[%emt 00:00:08]} h1=Q {[%clk 00:01:10]}
{[%emt 00:00:20]} 66. b8=Q {[%clk 00:09:03]} {[%emt 00:00:04]} Kg2 {[%clk
00:01:02]} {[%emt 00:00:37]} 67. Qb7+ {[%clk 00:09:05]} {[%emt 00:00:29]} Kg1
{[%clk 00:01:10]} {[%emt 00:00:22]} 68. Qxh1+ {[%clk 00:09:09]} {[%emt
00:00:26]} Kxh1 {[%clk 00:01:28]} {[%emt 00:00:13]} 69. Kf2 {[%clk 00:09:36]}
{[%emt 00:00:03]} h2 {[%clk 00:01:44]} {[%emt 00:00:14]} 1/2-1/2

[Event "NJSK 2024 B"]
[Site "Groningen, Netherlands"]
[Date "2024.04.30"]
[Round "4.6"]
[White "Kumar, Prajit Sai"]
[Black "Kshirsagar, Pranav"]
[Result "1-0"]
[TimeControl "90min/40moves + 30min + 30sec/move"]
[WhiteElo "2211"]
[BlackElo "1957"]

1. e4 {[%clk 01:30:59]} c6 {[%clk 01:30:56]} {[%emt 00:00:05]} 2. Nf3 {[%clk
01:30:47]} {[%emt 00:00:42]} d5 {[%clk 01:31:20]} {[%emt 00:00:06]} 3. Nc3
{[%clk 01:31:13]} {[%emt 00:00:03]} dxe4 {[%clk 01:31:46]} {[%emt 00:00:04]} 4.
Nxe4 {[%clk 01:31:38]} {[%emt 00:00:05]} Nf6 {[%clk 01:32:11]} {[%emt
00:00:05]} 5. Qe2 {[%clk 01:32:03]} {[%emt 00:00:04]} Nxe4 {[%clk 01:32:20]}
{[%emt 00:00:21]} 6. Qxe4 {[%clk 01:32:27]} {[%emt 00:00:06]} Nd7 {[%clk
01:30:43]} {[%emt 00:02:07]} 7. d4 {[%clk 01:32:47]} {[%emt 00:00:09]} Nf6
{[%clk 01:31:02]} {[%emt 00:00:11]} 8. Qd3 {[%clk 01:33:12]} {[%emt 00:00:06]}
e6 {[%clk 01:27:43]} {[%emt 00:03:49]} 9. Be2 {[%clk 01:26:23]} {[%emt
00:07:19]} Bd6 {[%clk 01:27:03]} {[%emt 00:01:11]} 10. O-O {[%clk 01:25:33]}
{[%emt 00:01:19]} h6 {[%clk 01:26:09]} {[%emt 00:01:23]} 11. c4 {[%clk
01:22:43]} {[%emt 00:03:20]} O-O {[%clk 01:25:59]} {[%emt 00:00:40]} 12. h3
{[%clk 01:23:08]} {[%emt 00:00:05]} Qc7 {[%clk 01:11:00]} {[%emt 00:15:29]} 13.
Be3 {[%clk 01:20:11]} {[%emt 00:03:27]} b6 {[%clk 01:10:10]} {[%emt 00:01:20]}
14. Rac1 {[%clk 01:13:49]} {[%emt 00:06:52]} Rd8 {[%clk 01:06:28]} {[%emt
00:04:12]} 15. Rfd1 {[%clk 01:08:57]} {[%emt 00:05:22]} Bb7 {[%clk 01:05:18]}
{[%emt 00:01:40]} 16. a3 {[%clk 01:06:25]} {[%emt 00:03:02]} c5 {[%clk
01:02:23]} {[%emt 00:03:25]} 17. Qc3 {[%clk 01:04:08]} {[%emt 00:02:47]} Ne4
{[%clk 00:51:37]} {[%emt 00:11:17]} 18. Qe1 {[%clk 01:03:34]} {[%emt 00:01:04]}
Bf4 {[%clk 00:46:02]} {[%emt 00:06:05]} 19. Bf1 {[%clk 00:56:58]} {[%emt
00:07:05]} Rac8 {[%clk 00:41:21]} {[%emt 00:05:11]} 20. b4 {[%clk 00:56:18]}
{[%emt 00:01:11]} Bxe3 {[%clk 00:28:18]} {[%emt 00:13:32]} 21. Qxe3 {[%clk
00:55:38]} {[%emt 00:01:09]} a5 {[%clk 00:28:35]} {[%emt 00:00:14]} 22. bxc5
{[%clk 00:41:08]} {[%emt 00:15:00]} bxc5 {[%clk 00:28:44]} {[%emt 00:00:21]} 23.
Rb1 {[%clk 00:41:05]} {[%emt 00:00:33]} Nd6 {[%clk 00:23:14]} {[%emt 00:06:00]}
24. dxc5 {[%clk 00:33:21]} {[%emt 00:08:14]} Nf5 {[%clk 00:22:17]} {[%emt
00:01:27]} 25. Rxd8+ {[%clk 00:25:13]} {[%emt 00:08:38]} Qxd8 {[%clk 00:20:42]}
{[%emt 00:02:04]} 26. Qc3 {[%clk 00:22:40]} {[%emt 00:03:03]} Be4 {[%clk
00:18:36]} {[%emt 00:02:36]} 27. Re1 {[%clk 00:19:42]} {[%emt 00:03:28]} Bxf3
{[%clk 00:17:41]} {[%emt 00:01:25]} 28. Qxf3 {[%clk 00:20:07]} {[%emt
00:00:05]} Rxc5 {[%clk 00:18:05]} {[%emt 00:00:06]} 29. Rd1 {[%clk 00:20:12]}
{[%emt 00:00:25]} Qc7 {[%clk 00:16:01]} {[%emt 00:02:34]} 30. Qa8+ {[%clk
00:19:03]} {[%emt 00:01:39]} Kh7 {[%clk 00:16:13]} {[%emt 00:00:19]} 31. Rd8
{[%clk 00:17:30]} {[%emt 00:02:03]} Qc6 {[%clk 00:13:31]} {[%emt 00:03:12]} 32.
Rh8+ {[%clk 00:15:24]} {[%emt 00:02:36]} Kg6 {[%clk 00:13:55]} {[%emt
00:00:07]} 33. Qb8 {[%clk 00:13:44]} {[%emt 00:02:10]} Qc7 {[%clk 00:13:05]}
{[%emt 00:01:20]} 34. Qb1 {[%clk 00:10:43]} {[%emt 00:03:30]} Kf6 {[%clk
00:11:54]} {[%emt 00:01:41]} 35. Rg8 {[%clk 00:11:00]} {[%emt 00:00:13]} Qf4
{[%clk 00:10:14]} {[%emt 00:02:10]} 36. Qd1 {[%clk 00:09:59]} {[%emt 00:01:31]}
Qd6 {[%clk 00:05:00]} {[%emt 00:05:44]} 37. Qf3 {[%clk 00:09:58]} {[%emt
00:00:32]} Qc6 {[%clk 00:05:16]} {[%emt 00:00:14]} 38. Qc3+ {[%clk 00:09:13]}
{[%emt 00:01:14]} e5 {[%clk 00:05:30]} {[%emt 00:00:16]} 39. Rd8 {[%clk
00:07:06]} {[%emt 00:02:37]} g5 {[%clk 00:04:10]} {[%emt 00:01:51]} 40. Qd3
{[%clk 00:03:45]} {[%emt 00:03:50]} Nd4 {[%clk 00:01:09]} {[%emt 00:03:31]} 41.
Rh8 {[%clk 00:29:25]} {[%emt 00:04:50]} Ke7 {[%clk 00:29:11]} {[%emt 00:02:27]}
42. Qb1 {[%clk 00:27:40]} {[%emt 00:02:15]} Qf6 {[%clk 00:10:32]} {[%emt
00:19:09]} 43. Qb8 {[%clk 00:19:54]} {[%emt 00:08:16]} Ne6 {[%clk 00:08:34]}
{[%emt 00:02:29]} 44. g3 {[%clk 00:16:50]} {[%emt 00:03:35]} Qg7 {[%clk
00:06:27]} {[%emt 00:02:36]} 45. Bd3 {[%clk 00:14:50]} {[%emt 00:02:30]} Rc7
{[%clk 00:02:29]} {[%emt 00:04:28]} 46. Re8+ {[%clk 00:12:12]} {[%emt
00:03:08]} Kd6 {[%clk 00:02:11]} {[%emt 00:00:49]} 47. Be4 {[%clk 00:11:38]}
{[%emt 00:01:04]} f6 {[%clk 00:00:48]} {[%emt 00:01:53]} 48. Qb6+ {[%clk
00:11:29]} {[%emt 00:00:38]} 1-0

[Event "NJSK 2024 B"]
[Site "Groningen, Netherlands"]
[Date "2024.04.30"]
[Round "4.7"]
[White "Ponomarev, Ivan"]
[Black "Krylov, Philippe"]
[Result "0-1"]
[TimeControl "90min/40moves + 30min + 30sec/move"]
[WhiteElo "1924"]
[BlackElo "2007"]

1. c4 {[%clk 01:30:59]} e6 {[%clk 01:30:56]} {[%emt 00:00:05]} 2. d4 {[%clk
01:31:26]} {[%emt 00:00:04]} Nf6 {[%clk 01:31:20]} {[%emt 00:00:05]} 3. Nf3
{[%clk 01:31:49]} {[%emt 00:00:07]} b6 {[%clk 01:31:47]} {[%emt 00:00:04]} 4.
g3 {[%clk 01:31:06]} {[%emt 00:01:14]} Bb7 {[%clk 01:32:10]} {[%emt 00:00:06]}
5. Bg2 {[%clk 01:31:31]} {[%emt 00:00:04]} Bb4+ {[%clk 01:32:35]} {[%emt
00:00:05]} 6. Bd2 {[%clk 01:31:17]} {[%emt 00:00:45]} Bxd2+ {[%clk 01:32:57]}
{[%emt 00:00:08]} 7. Nbxd2 {[%clk 01:30:52]} {[%emt 00:00:56]} O-O {[%clk
01:31:55]} {[%emt 00:01:31]} 8. O-O {[%clk 01:30:28]} {[%emt 00:00:53]} d6
{[%clk 01:31:30]} {[%emt 00:00:55]} 9. Qc2 {[%clk 01:21:06]} {[%emt 00:09:53]}
c5 {[%clk 01:30:18]} {[%emt 00:01:42]} 10. e4 {[%clk 01:10:43]} {[%emt
00:10:53]} cxd4 {[%clk 01:28:51]} {[%emt 00:01:56]} 11. Nxd4 {[%clk 01:11:02]}
{[%emt 00:00:12]} a6 {[%clk 01:28:50]} {[%emt 00:00:32]} 12. Rad1 {[%clk
01:06:51]} {[%emt 00:04:40]} Nbd7 {[%clk 01:28:17]} {[%emt 00:01:02]} 13. Rfe1
{[%clk 01:04:56]} {[%emt 00:02:26]} Qc7 {[%clk 01:26:28]} {[%emt 00:02:19]} 14.
b3 {[%clk 00:48:14]} {[%emt 00:17:12]} Rac8 {[%clk 01:24:13]} {[%emt 00:02:45]}
15. Qb1 {[%clk 00:47:18]} {[%emt 00:01:26]} Rfd8 {[%clk 01:23:05]} {[%emt
00:01:37]} 16. h3 {[%clk 00:33:36]} {[%emt 00:14:12]} Qc5 {[%clk 01:14:15]}
{[%emt 00:09:20]} 17. N4f3 {[%clk 00:32:54]} {[%emt 00:01:13]} Ba8 {[%clk
01:10:32]} {[%emt 00:04:13]} 18. Nh2 {[%clk 00:30:27]} {[%emt 00:02:58]} h6
{[%clk 01:04:09]} {[%emt 00:06:53]} 19. Nhf1 {[%clk 00:30:37]} {[%emt
00:00:19]} Qc7 {[%clk 01:01:11]} {[%emt 00:03:28]} 20. Ne3 {[%clk 00:30:21]}
{[%emt 00:00:46]} Nc5 {[%clk 01:00:49]} {[%emt 00:00:51]} 21. Kh2 {[%clk
00:19:26]} {[%emt 00:11:26]} Bc6 {[%clk 00:57:29]} {[%emt 00:03:50]} 22. b4
{[%clk 00:08:32]} {[%emt 00:11:25]} Ncd7 {[%clk 00:57:51]} {[%emt 00:00:08]} 23.
b5 {[%clk 00:07:54]} {[%emt 00:01:09]} Bb7 {[%clk 00:58:10]} {[%emt 00:00:10]}
24. Nb3 {[%clk 00:07:27]} {[%emt 00:00:57]} a5 {[%clk 00:57:32]} {[%emt
00:01:08]} 25. f4 {[%clk 00:06:26]} {[%emt 00:01:30]} Ba8 {[%clk 00:52:24]}
{[%emt 00:05:38]} 26. Rc1 {[%clk 00:01:16]} {[%emt 00:05:40]} Nc5 {[%clk
00:46:56]} {[%emt 00:05:58]} 27. Nxc5 {[%clk 00:01:21]} {[%emt 00:00:25]} Qxc5
{[%clk 00:47:25]} {[%emt 00:00:02]} 28. Qd3 {[%clk 00:01:10]} {[%emt 00:00:40]}
Qc7 {[%clk 00:41:09]} {[%emt 00:06:45]} 29. Ng4 {[%clk 00:00:48]} {[%emt
00:00:53]} Nd7 {[%clk 00:40:20]} {[%emt 00:01:19]} 30. Red1 {[%clk 00:00:50]}
{[%emt 00:00:29]} Nc5 {[%clk 00:40:34]} {[%emt 00:00:15]} 31. Qe3 {[%clk
00:01:19]} {[%emt 00:00:01]} Qb7 {[%clk 00:40:31]} {[%emt 00:00:33]} 32. Nf2
{[%clk 00:01:18]} {[%emt 00:00:31]} Rc7 {[%clk 00:16:46]} {[%emt 00:24:15]} 33.
Bh1 {[%clk 00:01:24]} {[%emt 00:00:24]} Qc8 {[%clk 00:16:18]} {[%emt 00:00:58]}
34. Nd3 {[%clk 00:00:48]} {[%emt 00:01:06]} Rcd7 {[%clk 00:12:57]} {[%emt
00:03:50]} 35. Nxc5 {[%clk 00:00:53]} {[%emt 00:00:26]} dxc5 {[%clk 00:12:38]}
{[%emt 00:00:50]} 36. Qe2 {[%clk 00:00:44]} {[%emt 00:00:38]} Rd4 {[%clk
00:12:31]} {[%emt 00:00:37]} 37. Rxd4 {[%clk 00:00:52]} {[%emt 00:00:22]} Rxd4
{[%clk 00:11:36]} {[%emt 00:01:24]} 38. Rd1 {[%clk 00:01:03]} {[%emt 00:00:18]}
Qd8 {[%clk 00:09:10]} {[%emt 00:02:57]} 39. Rxd4 {[%clk 00:01:07]} {[%emt
00:00:26]} Qxd4 {[%clk 00:09:12]} {[%emt 00:00:28]} 40. e5 {[%clk 00:00:56]}
{[%emt 00:00:41]} Bxh1 {[%clk 00:09:08]} {[%emt 00:00:34]} 41. Kxh1 {[%clk
00:01:24]} {[%emt 00:00:02]} a4 {[%clk 00:08:56]} {[%emt 00:00:42]} 42. Kg2
{[%clk 00:28:43]} {[%emt 00:03:11]} a3 {[%clk 00:37:14]} {[%emt 00:02:13]} 43.
Kf3 {[%clk 00:22:45]} {[%emt 00:06:26]} Qc3+ {[%clk 00:35:37]} {[%emt
00:02:09]} 44. Kf2 {[%clk 00:22:20]} {[%emt 00:00:54]} Qb2 {[%clk 00:35:37]}
{[%emt 00:00:30]} 45. Kf3 {[%clk 00:19:33]} {[%emt 00:03:18]} Qd4 {[%clk
00:35:28]} {[%emt 00:00:38]} 46. Kg2 {[%clk 00:19:51]} {[%emt 00:00:12]} g6
{[%clk 00:31:32]} {[%emt 00:04:27]} 47. h4 {[%clk 00:14:51]} {[%emt 00:05:29]}
Kg7 {[%clk 00:31:52]} {[%emt 00:00:10]} 48. Kf3 {[%clk 00:13:07]} {[%emt
00:02:13]} Qc3+ {[%clk 00:31:32]} {[%emt 00:00:52]} 49. Kf2 {[%clk 00:12:50]}
{[%emt 00:00:45]} Qb2 {[%clk 00:31:32]} {[%emt 00:00:32]} 50. Kf3 {[%clk
00:12:32]} {[%emt 00:00:47]} Qd4 {[%clk 00:31:57]} {[%emt 00:00:05]} 51. Kg2
{[%clk 00:12:51]} {[%emt 00:00:11]} Qb2 {[%clk 00:23:47]} {[%emt 00:08:41]} 52.
Kf2 {[%clk 00:12:05]} {[%emt 00:01:14]} Qc3 {[%clk 00:24:08]} {[%emt 00:00:10]}
53. Kg2 {[%clk 00:11:56]} {[%emt 00:00:37]} Qd4 {[%clk 00:24:30]} {[%emt
00:00:11]} 54. Kf3 {[%clk 00:11:01]} {[%emt 00:01:25]} g5 {[%clk 00:20:34]}
{[%emt 00:04:26]} 55. hxg5 {[%clk 00:09:22]} {[%emt 00:02:08]} hxg5 {[%clk
00:20:52]} {[%emt 00:00:12]} 56. Kg4 {[%clk 00:07:38]} {[%emt 00:02:14]} Qb2
{[%clk 00:17:06]} {[%emt 00:04:16]} 57. Kf3 {[%clk 00:08:00]} {[%emt 00:00:08]}
g4+ {[%clk 00:08:25]} {[%emt 00:09:11]} 58. Kf2 {[%clk 00:08:24]} {[%emt
00:00:06]} Kg6 {[%clk 00:08:51]} {[%emt 00:00:05]} 59. Kf1 {[%clk 00:06:49]}
{[%emt 00:02:04]} Qb1+ {[%clk 00:09:14]} {[%emt 00:00:08]} 60. Kf2 {[%clk
00:03:49]} {[%emt 00:03:29]} Kf5 {[%clk 00:09:38]} {[%emt 00:00:06]} 61. Qe3
{[%clk 00:00:56]} {[%emt 00:03:24]} Qxa2+ {[%clk 00:09:57]} {[%emt 00:00:11]}
62. Kg1 {[%clk 00:00:48]} {[%emt 00:00:36]} Qb1+ {[%clk 00:10:21]} {[%emt
00:00:07]} 63. Kh2 {[%clk 00:00:49]} {[%emt 00:00:29]} a2 {[%clk 00:10:33]}
{[%emt 00:00:18]} 64. Qe2 {[%clk 00:00:42]} {[%emt 00:00:37]} a1=Q {[%clk
00:09:52]} {[%emt 00:01:11]} 65. Qe4+ {[%clk 00:00:33]} {[%emt 00:00:39]} Kxe4
{[%clk 00:10:20]} {[%emt 00:00:02]} 0-1